fUST/lending_fUST_20241015
["ID","MTS","AMOUNT","RATE_DAILY","PERIOD"]
[340261374,1728937861845,-500.0,0.00044527,60]
[340261375,1728937861857,-1950.61,0.00044527,60]
[340261376,1728937861867,-295.43824005,0.00044527,60]
[340261377,1728937861877,-500.0,0.00044527,60]
[340261378,1728937861887,-1608.65344922,0.00044585,2]
[340261379,1728937861906,-150.0,0.00044642,120]
[340261380,1728937861919,-1765.43,0.00044657,30]
[340261381,1728937861930,-950.0,0.00044756,7]
[340261382,1728937861942,-977.39021332,0.00044853,10]
[340261383,1728937861952,-1765.43,0.00044931,30]
[340261384,1728937861963,-500.0,0.00044971,60]
[340261385,1728937861974,-361.00235739,0.00044971,60]
[340261386,1728937861985,-500.0,0.00044971,30]
[340261387,1728937861996,-500.0,0.00044971,7]
[340261388,1728937862007,-250.0,0.00044971,60]
[340261389,1728937862018,-500.0,0.00044971,60]
[340261390,1728937862029,-500.0,0.00044971,60]
[340261391,1728937862042,-500.0,0.00044971,60]
[340261392,1728937862053,-500.0,0.00044971,60]
[340261393,1728937862063,-500.0,0.00044981,60]
[340261394,1728937862074,-543.0,0.00044981,30]
[340261395,1728937862085,-500.0,0.00044981,60]
[340261396,1728937862095,-500.0,0.00044981,60]
[340261397,1728937862106,-500.0,0.00044981,60]
[340261398,1728937862116,-669.69338798,0.00044983,28]
[340261399,1728937862127,-7544.13,0.00044986,60]
[340261400,1728937862138,-5049.84,0.00044986,21]
[340261401,1728937862151,-5000.0,0.00045,55]
[340261402,1728937862160,-500.0,0.00045,5]
[340261403,1728937862171,-500.0,0.00045,5]
[340261404,1728937862182,-500.0,0.00045,5]
[340261405,1728937862192,-500.0,0.00045,5]
[340261406,1728937862202,-500.0,0.00045,5]
[340261407,1728937862212,-894.42462219,0.00045,120]
[340261408,1728937862222,-33106.0,0.00045,30]
[340261409,1728937862232,-2001.82172059,0.00045,30]
[340261410,1728937862244,-1708.14306588,0.00045,30]
[340261411,1728937862254,-1000.0,0.00045,120]
[340261412,1728937862264,-253.0,0.00045,14]
[340261413,1728937862274,-228.0,0.00045,2]
[340261414,1728937862285,-363.19,0.00045001,60]
[340261415,1728937862295,-301.31282642,0.00045001,60]
[340261416,1728937862304,-4715.254047,0.00045045,120]
[340261417,1728937862314,-201.5,0.00045057,7]
[340261418,1728937862324,-201.0,0.00045074,90]
[340261419,1728937862334,-240.39767608,0.00045129,60]
[340261420,1728937862344,-500.0,0.00045129,60]
[340261421,1728937862354,-500.0,0.00045129,60]
[340261422,1728937862364,-500.0,0.00045129,60]
[340261423,1728937862375,-500.0,0.00045129,60]
[340261424,1728937862387,-500.0,0.00045129,60]
[340261425,1728937862397,-500.0,0.00045129,60]
[340261426,1728937862408,-500.0,0.00045129,60]
[340261427,1728937862417,-1950.61,0.00045129,60]
[340261428,1728937862426,-500.0,0.00045129,60]
[340261429,1728937862436,-1765.43,0.00045205,30]
[340261430,1728937862447,-2000.0,0.00045287,10]
[340261431,1728937862458,-1050.0,0.00045304,7]
[340261432,1728937862469,-150.0,0.00045351,7]
[340261433,1728937862480,-164.0,0.00045351,15]
[340261434,1728937862496,-526.0,0.00045382,2]
[340261435,1728937862509,-1806.0,0.00045382,2]
[340261436,1728937862519,-1157.0,0.00045382,2]
[340261437,1728937862533,-1765.43,0.00045479,30]
[340261438,1728937862543,-89999.93263507,0.000455,120]
[340261439,1728937862554,-89999.999999,0.0004555,120]
[340261440,1728937862565,-500.0,0.00045573,60]
[340261441,1728937862576,-253.84222791,0.00045573,30]
[340261442,1728937862586,-500.0,0.00045573,7]
[340261443,1728937862597,-297.63562688,0.00045573,60]
[340261444,1728937862606,-500.0,0.00045573,60]
[340261445,1728937862618,-500.0,0.00045573,60]
[340261446,1728937862630,-369.52279349,0.00045573,60]
[340261447,1728937862643,-290.68179717,0.00045573,60]
[340261448,1728937862654,-500.0,0.00045584,60]
[340261449,1728937862666,-543.0,0.00045584,30]
[340261450,1728937862676,-500.0,0.00045584,60]
[340261451,1728937862687,-500.0,0.00045584,60]
[340261452,1728937862697,-500.0,0.00045584,60]
[340261453,1728937862707,-1029.92433981,0.00045587,7]
[340261454,1728937862717,-7544.13,0.00045589,60]
[340261455,1728937862728,-5049.84,0.00045589,21]
[340261456,1728937862743,-363.19,0.00045604,60]
[340261457,1728937862754,-1362.80403084,0.00045667,54]
[340261458,1728937862767,-1000.0,0.0004569,7]
[340261459,1728937862779,-500.0,0.00045732,60]
[340261460,1728937862790,-500.0,0.00045732,60]
[340261461,1728937862800,-500.0,0.00045732,60]
[340261462,1728937862811,-500.0,0.00045732,60]
[340261463,1728937862821,-500.0,0.00045732,60]
[340261464,1728937862832,-500.0,0.00045732,60]
[340261465,1728937862842,-500.0,0.00045732,60]
[340261466,1728937862853,-1950.61,0.00045732,60]
[340261467,1728937862864,-500.0,0.00045732,60]
[340261468,1728937862874,-1765.43,0.00045753,30]
[340261469,1728937862887,-1000.0,0.00045764,7]
[340261470,1728937862897,-509.21621204,0.000458,120]
[340261471,1728937862906,-160.0,0.00045827,4]
[340261472,1728937862916,-204.35593698,0.00045827,5]
[340261473,1728937862925,-1150.0,0.00045852,7]
[340261474,1728937863015,-148151.1378223,0.0004586,3]
[340261475,1728937863025,-255.93531578,0.0004586,3]
[340261476,1728937863035,-200000.0,0.0004587,4]
[340261477,1728937863045,-200000.0,0.0004588,3]
[340261478,1728937863055,-2488.12015127,0.00045885,60]
[340261479,1728937863064,-253.0,0.000459,14]
[340261480,1728937863074,-5000.0,0.00046,46]
[340261481,1728937863084,-2871741.22995865,0.00046,60]
[340261482,1728937863186,-98887.99631984,0.00046,60]
[340261483,1728937863277,-194.27855462,0.0002571,2]
[340261484,1728937863286,-194.27855458,0.00028882,2]
[340261485,1728937863296,-42352.89472494,0.00046,60]
[340261486,1728937863307,-81600.0,0.00046,120]
[340261487,1728937863316,-87815.04647174,0.00046,60]
[340261488,1728937863325,-500.0,0.00046,15]
[340261489,1728937863335,-605.11912685,0.00046,120]
[340261490,1728937863344,-246.1,0.00046,30]
[340261491,1728937863354,-212.0,0.00046,120]
[340261492,1728937863364,-2181.82360625,0.00046,90]
[340261493,1728937863374,-171.68639927,0.00046,60]
[340261494,1728937863383,-1765.43,0.00046027,30]
[340261495,1728937863393,-500.0,0.00046176,60]
[340261496,1728937863402,-500.0,0.00046176,7]
[340261497,1728937863412,-595.75197571,0.00046176,60]
[340261498,1728937863422,-500.0,0.00046176,60]
[340261499,1728937863431,-500.0,0.00046187,60]
[340261500,1728937863442,-543.0,0.00046187,30]
[340261501,1728937863452,-500.0,0.00046187,60]
[340261502,1728937863463,-553.12059817,0.00046187,60]
[340261503,1728937863472,-500.0,0.00046187,60]
[340261504,1728937863482,-7544.13,0.00046191,60]
[340261505,1728937863492,-5049.84,0.00046191,21]
[340261506,1728937863503,-156.34,0.000462,39]
[340261507,1728937863514,-156.34,0.000462,39]
[340261508,1728937863526,-156.34,0.000462,39]
[340261509,1728937863537,-363.19,0.00046207,60]
[340261510,1728937863547,-1765.43,0.00046301,30]
[340261511,1728937863557,-1608.65344922,0.00046304,2]
[340261512,1728937863568,-500.0,0.00046335,60]
[340261513,1728937863578,-500.0,0.00046335,60]
[340261514,1728937863587,-500.0,0.00046335,60]
[340261515,1728937863597,-157.93528966,0.00046335,60]
[340261516,1728937863608,-500.0,0.00046335,60]
[340261517,1728937863618,-500.0,0.00046335,60]
[340261518,1728937863628,-500.0,0.00046335,60]
[340261519,1728937863637,-1950.61,0.00046335,60]
[340261520,1728937863647,-500.0,0.00046335,60]
[340261521,1728937863657,-1765.43,0.00046575,120]
[340261522,1728937863667,-331.08710537,0.00046575,14]
[340261537,1728938877576,-150.0,0.000257,2]
[340261614,1728939045803,-173.54561134,0.00032877,2]
[340261615,1728939045813,-461.24181869,0.00034849,120]
[340261616,1728939045824,-150.0,0.000373,2]
[340261617,1728939045834,-197.353,0.00037358,48]
[340261618,1728939045844,-500.0,0.00038356,60]
[340261619,1728939045854,-500.0,0.00038356,60]
[340261620,1728939045866,-500.0,0.00038356,60]
[340261621,1728939045876,-493.0,0.00038356,60]
[340261622,1728939045887,-500.0,0.00038356,60]
[340261623,1728939045898,-500.0,0.00038356,60]
[340261624,1728939045908,-500.0,0.00038356,60]
[340261625,1728939045919,-500.0,0.00038356,60]
[340261626,1728939045929,-546.195,0.00038356,7]
[340261627,1728939045939,-500.0,0.00038356,60]
[340261628,1728939045949,-500.0,0.00038356,60]
[340261629,1728939045958,-500.0,0.00038356,60]
[340261630,1728939045969,-812.75,0.00038356,60]
[340261631,1728939045978,-407.82433817,0.00038356,7]
[340261632,1728939045987,-200.0,0.00038356,60]
[340261633,1728939045996,-500.0,0.00038356,60]
[340261634,1728939046005,-500.0,0.00038356,30]
[340261635,1728939046014,-216.557224,0.00038356,2]
[340261636,1728939046023,-279.0,0.00038957,2]
[340261637,1728939046032,-3143.39,0.00038957,60]
[340261638,1728939046041,-2104.1,0.00038957,21]
[340261639,1728939046051,-500.0,0.00038958,60]
[340261640,1728939046060,-500.0,0.00038958,60]
[340261641,1728939046069,-500.0,0.00038958,60]
[340261642,1728939046078,-419.89,0.00038958,60]
[340261643,1728939046087,-500.0,0.00038958,60]
[340261644,1728939046096,-500.0,0.00038958,60]
[340261645,1728939046105,-500.0,0.00038958,60]
[340261646,1728939046114,-500.0,0.00038958,60]
[340261647,1728939046124,-500.0,0.00038958,60]
[340261648,1728939046133,-500.0,0.00038958,60]
[340261649,1728939046142,-812.75,0.00038958,60]
[340261650,1728939046151,-200.0,0.00038958,60]
[340261651,1728939046160,-266.99691199,0.00038958,60]
[340261652,1728939046170,-500.0,0.00038958,30]
[340261653,1728939046179,-167.42334703,0.00039461,2]
[340261654,1728939046188,-3143.39,0.0003956,60]
[340261655,1728939046197,-2104.1,0.0003956,21]
[340261656,1728939046206,-500.0,0.00039561,60]
[340261657,1728939046215,-500.0,0.00039561,60]
[340261658,1728939046224,-500.0,0.00039561,60]
[340261659,1728939046234,-490.85424534,0.00039561,60]
[340261660,1728939046243,-500.0,0.00039561,60]
[340261661,1728939046252,-500.0,0.00039561,60]
[340261662,1728939046261,-500.0,0.00039561,60]
[340261663,1728939046270,-500.0,0.00039561,60]
[340261664,1728939046284,-500.0,0.00039561,60]
[340261665,1728939046293,-812.75,0.00039561,60]
[340261666,1728939046303,-200.0,0.00039561,60]
[340261667,1728939046312,-500.0,0.00039561,30]
[340261668,1728939046322,-194.27855458,0.0003979,2]
[340261669,1728939046332,-194.27855458,0.00039795,2]
[340261670,1728939046341,-804.32672461,0.000398,2]
[340261671,1728939046351,-194.27855458,0.000398,2]
[340261672,1728939046360,-500.0,0.00039873,5]
[340261673,1728939046370,-19252.8506173,0.00039877,5]
[340261674,1728939046379,-19252.8506173,0.00039887,5]
[340261675,1728939046389,-2750.40723104,0.0003989,5]
[340261676,1728939046398,-173.39330522,0.00039896,31]
[340261677,1728939046407,-168.93684986,0.00039896,31]
[340261678,1728939046416,-179.480208,0.00039896,31]
[340261679,1728939046425,-188.52438667,0.00039896,31]
[340261680,1728939046444,-187.00025392,0.00039896,31]
[340261681,1728939046455,-25687.86291134,0.00039897,2]
[340261682,1728939046470,-646.26892811,0.00039897,2]
[340261683,1728939046482,-334299.13951739,0.00039897,2]
[340261684,1728939046491,-212.61,0.000399,30]
[340261685,1728939046500,-26737.72,0.000399,30]
[340261686,1728939046510,-10358.74,0.000399,30]
[340261687,1728939046519,-1192.96794862,0.000399,30]
[340261705,1728939620796,-150.0,0.000257,2]
[340261707,1728940210067,-166.507944,0.00037608,2]
[340261708,1728940210092,-166.507944,0.00037804,2]
[340261709,1728940210117,-166.507944,0.00038,2]
[340261710,1728940210140,-730.45896497,0.00038,7]
[340261711,1728940210164,-166.507944,0.00038196,2]
[340261712,1728940210188,-500.0,0.00038356,60]
[340261713,1728940210211,-500.0,0.00038356,7]
[340261714,1728940210235,-500.0,0.00038356,7]
[340261715,1728940210258,-500.0,0.00038356,60]
[340261716,1728940210283,-540.505,0.00038356,7]
[340261717,1728940210304,-150.0,0.00038377,2]
[340261718,1728940210326,-526.0,0.00038377,2]
[340261719,1728940210350,-1157.0,0.00038377,2]
[340261720,1728940210374,-1806.0,0.00038377,2]
[340261721,1728940210398,-166.507944,0.00038392,2]
[340261722,1728940210429,-166.507944,0.00038588,2]
[340261723,1728940210453,-166.507944,0.00038784,2]
[340261724,1728940210478,-500.0,0.00038957,30]
[340261725,1728940210503,-500.0,0.00038957,60]
[340261726,1728940210537,-200.0,0.00038957,60]
[340261727,1728940210562,-502.92199539,0.00038958,60]
[340261728,1728940210585,-500.0,0.00038958,7]
[340261729,1728940210610,-500.0,0.00038958,60]
[340261730,1728940210636,-166.507944,0.00038979,2]
[340261731,1728940210661,-166.507944,0.00039175,2]
[340261732,1728940210687,-166.507944,0.00039371,2]
[340261733,1728940210712,-150.0,0.000394,2]
[340261734,1728940210740,-500.0,0.0003956,7]
[340261735,1728940210764,-500.0,0.0003956,30]
[340261736,1728940210789,-281.553472,0.0003956,60]
[340261737,1728940210814,-200.0,0.0003956,60]
[340261738,1728940210841,-500.0,0.00039561,7]
[340261739,1728940210865,-166.507944,0.00039567,2]
[340261740,1728940210890,-500.0,0.00039876,7]
[340261741,1728940210913,-500.0,0.00039886,7]
[340261742,1728940210938,-500.0,0.00039896,7]
[340261743,1728940210962,-500.70184803,0.00039896,7]
[340261744,1728940210986,-150.0,0.00039913,2]
[340261745,1728940211010,-595.83474795,0.00039999,60]
[340261746,1728940211036,-500.0,0.00039999,60]
[340261747,1728940211062,-337.48,0.00039999,7]
[340261748,1728940211084,-512.16,0.00039999,30]
[340261749,1728940211106,-500.0,0.00039999,7]
[340261750,1728940211137,-2881.44,0.00039999,60]
[340261751,1728940211165,-1928.76,0.00039999,21]
[340261752,1728940211193,-500.0,0.00039999,7]
[340261753,1728940211221,-500.0,0.00039999,60]
[340261754,1728940211250,-397.71733662,0.00039999,60]
[340261755,1728940211275,-500.0,0.00039999,60]
[340261756,1728940211300,-711.16,0.00039999,60]
[340261757,1728940211324,-500.0,0.00039999,60]
[340261758,1728940211354,-5000.0,0.0004,40]
[340261759,1728940215127,500.0,0.00039999,30]
[340261760,1728940220592,2761.38,0.00039998,60]
[340261772,1728940232014,-167.42334699,0.00040063,28]
[340261773,1728940232024,-200.0,0.00040163,60]
[340261774,1728940232034,-465.11637301,0.00040164,7]
[340261776,1728940237787,1848.39,0.00039998,21]
[340261779,1728940238182,-34.88362699,0.00040164,7]
[340261780,1728940238192,-158.0,0.0004034,120]
[340261781,1728940238203,-200.0,0.0004043,7]
[340261782,1728940238212,-150.0,0.0004043,14]
[340261783,1728940238223,-199.02,0.0004043,14]
[340261784,1728940238232,-1000.0,0.0004043,120]
[340261785,1728940238242,-200.0,0.0004043,120]
[340261786,1728940238253,-2761.38,0.00040601,60]
[340261787,1728940238264,-1848.39,0.00040601,21]
[340261788,1728940238274,-382.89382374,0.00040602,60]
[340261799,1728940240089,-117.10617626,0.00040602,60]
[340261800,1728940240100,-337.48,0.00040602,7]
[340261801,1728940240110,-512.16,0.00040602,30]
[340261802,1728940240121,-500.0,0.00040602,7]
[340261803,1728940240131,-500.0,0.00040602,7]
[340261804,1728940240141,-500.0,0.00040602,60]
[340261805,1728940240151,-500.0,0.00040602,60]
[340261806,1728940240161,-711.16,0.00040602,60]
[340261807,1728940240171,-500.0,0.00040602,60]
[340261808,1728940240180,-500.0,0.00040602,30]
[340261809,1728940240191,-200.0,0.00040766,60]
[340261810,1728940240201,-500.0,0.00040767,7]
[340261811,1728940240210,-5000.0,0.00041,41]
[340261812,1728940240220,-1081.01,0.00041095,8]
[340261813,1728940240230,-457.72134231,0.00041204,60]
[340261814,1728940240239,-337.48,0.00041204,7]
[340261815,1728940240250,-512.16,0.00041204,30]
[340261816,1728940240260,-500.0,0.00041204,7]
[340261817,1728940240269,-500.0,0.00041204,7]
[340261818,1728940240278,-500.0,0.00041204,60]
[340261819,1728940240289,-500.0,0.00041204,60]
[340261820,1728940240299,-711.16,0.00041204,60]
[340261821,1728940240309,-500.0,0.00041204,60]
[340261822,1728940240319,-500.0,0.00041204,30]
[340261823,1728940240329,-2761.38,0.00041204,60]
[340261824,1728940240339,-1848.39,0.00041204,21]
[340261825,1728940240353,-200.0,0.00041368,60]
[340261826,1728940240363,-500.67536605,0.00041369,7]
[340261827,1728940240373,-150.0,0.00041377,2]
[340261828,1728940240383,-526.0,0.00041377,2]
[340261829,1728940240394,-1157.0,0.00041377,2]
[340261830,1728940240404,-1806.0,0.00041377,2]
[340261831,1728940240414,-2062.80542328,0.00041548,6]
[340261832,1728940240425,-1375.20361552,0.00041557,6]
[340261833,1728940240436,-50135.21884005,0.00041567,90]
[340261834,1728940240454,-353.1278318,0.00041567,90]
[340261835,1728940240466,-3294.6,0.00041567,90]
[340261836,1728940240479,-1830.39163533,0.00041567,90]
[340261840,1728940243315,-6415.5841154,0.00041567,90]
[340261841,1728940243329,-452.112233,0.00041567,90]
[340261850,1728940246036,-56292.73215053,0.00041567,90]
[340261851,1728940246046,-500.0,0.00041573,10]
[340261852,1728940246057,-2761.38,0.00041806,60]
[340261853,1728940246067,-1848.39,0.00041806,21]
[340261854,1728940246076,-337.48,0.00041807,7]
[340261855,1728940246086,-512.16,0.00041807,30]
[340261856,1728940246095,-500.0,0.00041807,7]
[340261857,1728940246105,-273.70415629,0.00041807,7]
[340261858,1728940246116,-500.0,0.00041807,60]
[340261859,1728940246126,-500.0,0.00041807,60]
[340261860,1728940246137,-711.16,0.00041807,60]
[340261861,1728940246148,-488.68342802,0.00041807,60]
[340261862,1728940246158,-500.0,0.00041807,30]
[340261863,1728940246168,-200.0,0.00041971,60]
[340261864,1728940246178,-1375.20361552,0.0004198,6]
[340261865,1728940246188,-5000.0,0.00042,42]
[340261866,1728940246197,-2761.38,0.00042409,60]
[340261867,1728940246207,-1848.39,0.00042409,21]
[340261868,1728940246216,-337.48,0.0004241,7]
[340261869,1728940246226,-512.16,0.0004241,30]
[340261870,1728940246236,-500.0,0.0004241,7]
[340261871,1728940246247,-608.61484579,0.0004241,60]
[340261872,1728940246259,-500.0,0.0004241,60]
[340261873,1728940246269,-711.16,0.0004241,60]
[340261874,1728940246279,-500.0,0.0004241,30]
[340261875,1728940246291,-154.34185749,0.00042493,43]
[340261876,1728940246301,-200.0,0.00042574,60]
[340261877,1728940246312,-150.0,0.00042913,2]
[340261878,1728940246322,-1000.0,0.00042942,10]
[340261879,1728940246332,-5000.0,0.00043,43]
[340261880,1728940246342,-2761.38,0.00043012,60]
[340261881,1728940246356,-1848.39,0.00043012,21]
[340261882,1728940246366,-337.48,0.00043013,7]
[340261883,1728940246376,-512.16,0.00043013,30]
[340261884,1728940246388,-500.0,0.00043013,7]
[340261885,1728940246397,-623.34408871,0.00043013,60]
[340261886,1728940246406,-711.16,0.00043013,60]
[340261887,1728940246418,-500.0,0.00043013,30]
[340261888,1728940246429,-200.0,0.00043176,60]
[340261889,1728940246440,-337.48,0.00043615,7]
[340261890,1728940246452,-512.16,0.00043615,30]
[340261891,1728940246463,-500.0,0.00043615,7]
[340261892,1728940246474,-711.16,0.00043615,60]
[340261893,1728940246486,-500.0,0.00043615,30]
[340261894,1728940246498,-2761.38,0.00043615,60]
[340261895,1728940246507,-1848.39,0.00043615,21]
[340261896,1728940246518,-200.0,0.00043779,60]
[340261897,1728940246530,-1621.515,0.00043835,9]
[340261898,1728940246541,-5000.0,0.00044,44]
[340261899,1728940246553,-687.60180776,0.0004419,6]
[340261900,1728940246563,-167.42334699,0.00044203,28]
[340261901,1728940246573,-2761.38,0.00044217,60]
[340261902,1728940246584,-1848.39,0.00044217,21]
[340261903,1728940246594,-337.48,0.00044218,7]
[340261904,1728940246604,-512.16,0.00044218,30]
[340261905,1728940246614,-500.0,0.00044218,7]
[340261906,1728940246624,-711.16,0.00044218,60]
[340261907,1728940246634,-516.06484974,0.00044218,30]
[340261908,1728940246643,-687.60180776,0.00044357,6]
[340261909,1728940246653,-687.60180776,0.00044357,6]
[340261910,1728940246662,-150.0,0.00044377,2]
[340261911,1728940246671,-1157.0,0.00044377,2]
[340261912,1728940246680,-1016.0,0.00044377,2]
[340261913,1728940246690,-200.0,0.00044382,60]
[340261914,1728940246699,-1787.50649792,0.00044458,14]
[340261915,1728940246709,-2761.38,0.0004482,60]
[340261916,1728940246718,-1848.39,0.0004482,21]
[340261917,1728940246728,-337.48,0.00044821,7]
[340261918,1728940246737,-512.16,0.00044821,30]
[340261919,1728940246747,-500.0,0.00044821,7]
[340261920,1728940246758,-711.16,0.00044821,60]
[340261921,1728940246769,-731.61745409,0.00044946,10]
[340261922,1728940246780,-200.0,0.00044985,60]
[340261923,1728940246790,-687.60180776,0.0004499,6]
[340261924,1728940246800,-5000.0,0.00045,45]
[340261925,1728940246920,-2761.38,0.00045423,60]
[340261926,1728940246930,-1848.39,0.00045423,21]
[340261927,1728940246939,-337.48,0.00045424,7]
[340261928,1728940246949,-512.16,0.00045424,30]
[340261929,1728940246959,-500.0,0.00045424,7]
[340261930,1728940246969,-711.16,0.00045424,60]
[340261931,1728940246977,-200.0,0.00045587,60]
[340261932,1728940246987,-150.0,0.00045913,2]
[340261933,1728940246996,-5000.0,0.00046,46]
[340261934,1728940247005,-337.48,0.00046026,7]
[340261935,1728940247016,-512.16,0.00046026,30]
[340261936,1728940247030,-500.0,0.00046026,7]
[340261937,1728940247041,-711.16,0.00046026,60]
[340261938,1728940247051,-2761.38,0.00046026,60]
[340261939,1728940247063,-1848.39,0.00046026,21]
[340261940,1728940247072,-2512.36,0.00046119,30]
[340261941,1728940247083,-200.0,0.0004619,60]
[340261942,1728940247093,-372.12585069,0.00046303,2]
[340261943,1728940247105,-342.74495105,0.00046303,2]
[340261944,1728940247117,-413.3271816,0.00046329,30]
[340261945,1728940247130,-452.5965405,0.00046329,30]
[340261946,1728940247141,-1375.20361552,0.00046349,6]
[340261947,1728940247153,-687.60180776,0.00046359,6]
[340261948,1728940247163,-47551.6466881,0.00046369,7]
[340261949,1728940247175,-150.0,0.00046373,7]
[340261950,1728940247187,-150.0,0.00046373,10]
[340261951,1728940247198,-150.228483,0.000465,2]
[340261952,1728940247210,-2162.02,0.00046575,10]
[340261953,1728940247221,-317.99920801,0.00046575,14]
[340261954,1728940247232,-2761.38,0.00046628,60]
[340261955,1728940247243,-1848.39,0.00046628,21]
[340261956,1728940247255,-337.48,0.00046629,7]
[340261957,1728940247270,-512.16,0.00046629,30]
[340261958,1728940247279,-500.0,0.00046629,7]
[340261959,1728940247288,-711.16,0.00046629,120]
[340261960,1728940247297,-413.7492508,0.00046778,30]
[340261961,1728940247307,-210.2404033,0.00046778,30]
[340261962,1728940247317,-380.1702813,0.00046778,30]
[340261963,1728940247326,-210.2404033,0.00046778,30]
[340261964,1728940247336,-210.2404033,0.00046778,30]
[340261965,1728940247345,-210.2404033,0.00046778,30]
[340261966,1728940247355,-210.2404033,0.00046778,30]
[340261967,1728940247364,-210.2404033,0.00046778,30]
[340261968,1728940247374,-210.2404033,0.00046778,30]
[340261969,1728940247384,-210.2404033,0.00046778,30]
[340261970,1728940247394,-210.2404033,0.00046778,30]
[340261971,1728940247404,-210.2404033,0.00046778,30]
[340261972,1728940247413,-210.2404033,0.00046778,30]
[340261973,1728940247422,-210.2404033,0.00046778,30]
[340261974,1728940247431,-210.2404033,0.00046778,30]
[340261975,1728940247441,-210.2404033,0.00046778,30]
[340261976,1728940247450,-210.2404033,0.00046778,30]
[340261977,1728940247461,-200.0,0.00046793,120]
[340261978,1728940247470,-1765.43,0.00046849,120]
[340261979,1728940247480,-253.0,0.000469,30]
[340261980,1728940247489,-150.112233,0.000469,10]
[340261981,1728940247499,-250.0,0.00046921,7]
[340261982,1728940247508,-1000.0,0.00047,16]
[340261983,1728940247519,-158.0,0.00047,90]
[340261984,1728940247529,-1765.43,0.00047123,120]
[340261985,1728940247539,-2761.38,0.00047231,60]
[340261986,1728940247549,-1848.39,0.00047231,21]
[340261987,1728940247558,-337.48,0.00047232,7]
[340261988,1728940247567,-512.16,0.00047232,30]
[340261989,1728940247578,-500.0,0.00047232,7]
[340261990,1728940247589,-711.16,0.00047232,120]
[340261991,1728940247601,-322.13858,0.000473,120]
[340261992,1728940247613,-150.0,0.00047377,2]
[340261993,1728940247625,-200.0,0.00047396,120]
[340261994,1728940247634,-1765.56090327,0.00047397,120]
[340261995,1728940247645,-350.0,0.00047468,7]
[340261996,1728940247657,-1375.20361552,0.0004749,7]
[340261997,1728940247668,-50000.0,0.000475,60]
[340261998,1728940247678,-4024.51,0.000475,30]
[340261999,1728940247689,-263.97,0.000475,30]
[340262000,1728940247700,-9322.86,0.000475,30]
[340262001,1728940247710,-24063.94,0.000475,30]
[340262002,1728940247724,-175.60335327,0.00047562,120]
[340262003,1728940247734,-150.112233,0.000476,10]
[340262004,1728940247743,-150.0,0.000477,7]
[340262005,1728940247754,-2761.38,0.00047834,60]
[340262006,1728940247765,-1848.39,0.00047834,21]
[340262007,1728940247775,-337.48,0.00047835,7]
[340262008,1728940247785,-512.16,0.00047835,30]
[340262009,1728940247796,-500.0,0.00047835,7]
[340262010,1728940247807,-711.16,0.00047835,120]
[340262011,1728940247819,-300.0,0.000479,32]
[340262012,1728940247830,-200.0,0.00047998,120]
[340262013,1728940247845,-237.78675583,0.00048,120]
[340262014,1728940247854,-150.0,0.00048,120]
[340262015,1728940247863,-1000.0,0.00048,30]
[340262016,1728940247872,-450.0,0.00048016,7]